bitfinex/quotes_SOLUSD_20220103
["timestamp","ask_amount","ask_price","bid_price","bid_amount"]
[1641230006462,163.51362038,170.37,170.27,2.60952377]
[1641230008964,106.01,170.35,170.27,2.60952377]
[1641230009162,8.8135,170.31,170.27,2.60952377]
[1641230009365,8.48,170.3,170.17,73.9787]
[1641230009564,23.7134,170.29,170.17,73.9787]
[1641230009764,27.19537191,170.28,170.18,2.34059481]
[1641230009962,27.95537191,170.28,170.18,2.34059481]
[1641230010161,27.45537191,170.28,170.18,2.34059481]
[1641230010566,27.95537191,170.28,170.18,2.34059481]
[1641230010763,27.95537191,170.28,170.18,2.84059481]
[1641230012165,36.76937191,170.28,170.18,2.84059481]
[1641230013272,36.76937191,170.28,170.18,5.15658081]
[1641230014367,27.19537191,170.28,170.18,13.96988081]
[1641230014568,8.48,170.28,170.18,14.22988081]
[1641230017471,8.74,170.28,170.18,14.22988081]
[1641230018070,8.48,170.28,170.18,14.22988081]
[1641230020676,8.74,170.28,170.18,14.22988081]
[1641230020877,8.74,170.28,170.18,13.96988081]
[1641230021776,23.06470234,170.3,170.18,13.96988081]
[1641230021979,23.06470234,170.3,170.24,8.8095]
[1641230022176,23.06470234,170.3,170.25,2.29966224]
[1641230022377,23.06470234,170.3,170.25,2.79966224]
[1641230022779,23.06470234,170.3,170.25,3.05966224]
[1641230023381,23.56470234,170.3,170.25,9.0699]
[1641230023584,23.56470234,170.3,170.22,25.7785]
[1641230024581,23.82470234,170.3,170.23,3.03308597]
[1641230024983,23.82470234,170.3,170.23,3.53308597]
[1641230025382,23.82470234,170.3,170.23,3.79308597]
[1641230025383,23.06470234,170.3,170.23,3.79308597]
[1641230026284,23.06470234,170.3,170.23,12.60398597]
[1641230030411,23.06470234,170.3,170.23,12.34398597]
[1641230031411,23.32470234,170.3,170.23,12.34398597]
[1641230031611,23.06470234,170.3,170.23,12.34398597]
[1641230032514,23.32470234,170.3,170.23,12.34398597]
[1641230032917,23.32470234,170.3,170.29,2.43111484]
[1641230036818,0.26,170.3,170.29,0.00111484]
[1641230038224,8.74,170.3,170.29,0.00111484]
[1641230039122,9.24,170.3,170.29,0.00111484]
[1641230039922,51.24,170.3,170.29,0.00111484]
[1641230040224,60.0526,170.3,170.29,0.00111484]
[1641230044726,61.47929368,170.3,170.29,0.00111484]
[1641230046430,63.05471611,170.3,170.29,0.00111484]
[1641230047633,169.06471611,170.3,170.29,0.00111484]
[1641230047832,169.06471611,170.3,170.22,2.315986]
[1641230047833,8.8168,170.26,170.22,2.315986]
[1641230048033,8.48,170.25,170.22,2.315986]
[1641230048235,9.90669368,170.25,170.22,0.875986]
[1641230048436,1.42669368,170.24,170.22,0.005986]
[1641230048633,73.48,170.23,170.22,0.005986]
[1641230049034,75.66669368,170.23,170.22,0.005986]
[1641230049937,76.93469368,170.23,170.22,0.005986]
[1641230050538,85.75239368,170.23,170.22,0.005986]
[1641230051441,20.75239368,170.23,170.22,0.005986]
[1641230053069,9.748,170.23,170.22,0.005986]
[1641230053271,8.48,170.23,170.22,0.005986]
[1641230053471,8.98,170.23,170.22,0.005986]
[1641230054475,9.24,170.23,170.22,0.005986]
[1641230055373,8.74,170.23,170.22,0.005986]
[1641230055575,9.24,170.23,170.22,0.005986]
[1641230056375,8.74,170.23,170.22,0.005986]
[1641230056575,18.0555,170.23,170.22,0.005986]
[1641230059276,17.5555,170.23,170.22,0.005986]
[1641230061286,8.48,170.23,170.22,0.005986]
[1641230061681,6.94730478,170.24,170.22,0.005986]
[1641230064181,73.48,170.23,170.22,0.005986]
[1641230064380,73.98,170.23,170.22,0.005986]
[1641230064582,74.24,170.23,170.22,0.005986]
[1641230065081,19.63132243,170.23,170.22,0.005986]
[1641230065383,10.31542243,170.23,170.22,0.005986]
[1641230065983,8.74,170.23,170.22,0.005986]
[1641230067082,10.66669368,170.23,170.22,0.005986]
[1641230067686,52.66669368,170.23,170.22,0.005986]
[1641230068094,61.11311611,170.23,170.22,0.005986]
[1641230068487,69.92831611,170.23,170.22,0.005986]
[1641230068687,71.20741611,170.23,170.22,0.005986]
[1641230069492,29.20741611,170.23,170.22,0.005986]
[1641230069691,22.33641611,170.23,170.22,0.005986]
[1641230069891,20.90972243,170.23,170.22,0.005986]
[1641230070690,20.14972243,170.23,170.22,0.005986]
[1641230071493,18.5743,170.23,170.22,0.005986]
[1641230071990,18.8343,170.23,170.22,0.005986]
[1641230077300,19.3343,170.23,170.22,0.005986]
[1641230078500,20.76099368,170.23,170.22,0.005986]
[1641230079101,22.33641611,170.23,170.22,0.005986]
[1641230090319,22.07641611,170.23,170.22,0.005986]
[1641230090515,21.57641611,170.23,170.22,0.005986]
[1641230090713,21.57641611,170.23,170.22,6.07038592]
[1641230090916,20.29731611,170.23,170.22,6.07038592]
[1641230091214,20.29731611,170.23,170.22,3.03818597]
[1641230091413,20.29731611,170.23,170.22,0.005986]
[1641230091615,44.95331611,170.23,170.22,0.005986]
[1641230091814,45.21331611,170.23,170.22,0.005986]
[1641230092918,45.71331611,170.23,170.22,0.005986]
[1641230093117,45.21331611,170.23,170.22,0.005986]
[1641230093318,45.71331611,170.23,170.22,0.005986]
[1641230093720,44.13789368,170.23,170.22,0.005986]
[1641230096261,42.7112,170.23,170.22,0.005986]
[1641230098263,44.13789368,170.23,170.22,0.005986]
[1641230100968,54.06566947,170.23,170.22,0.005986]
[1641230101169,8.8182,170.17,170.13,1.2871]
[1641230101368,19.3869832,170.16,170.11,23.2532]
[1641230101568,19.6469832,170.16,170.11,0.5]
[1641230101769,19.6469832,170.16,170.11,2.815986]
[1641230102170,28.4652832,170.16,170.11,2.815986]
[1641230102369,28.4652832,170.16,170.11,2.315986]
[1641230102570,36.9452832,170.16,170.11,2.315986]
[1641230104876,37.4452832,170.16,170.11,2.315986]
[1641230106502,38.87197688,170.16,170.11,2.315986]
[1641230107107,1.5234819,170.15,170.11,2.315986]
[1641230107310,8.8212,170.13,170.11,2.315986]
[1641230107509,6.94730478,170.12,170.11,2.315986]
[1641230107908,7.20730478,170.12,170.11,2.315986]
[1641230108308,16.02850478,170.12,170.11,2.315986]
[1641230114414,16.52850478,170.12,170.11,2.315986]
[1641230115115,16.26850478,170.12,170.11,2.315986]
[1641230115316,15.76850478,170.12,170.11,2.315986]
[1641230117118,16.02850478,170.12,170.11,2.315986]
[1641230117922,26.43519846,170.12,170.11,2.315986]
[1641230118319,26.43519846,170.12,170.11,0.005986]
[1641230119921,51.43519846,170.12,170.11,0.005986]
[1641230120823,52.72269846,170.12,170.11,0.005986]
[1641230121423,158.73269846,170.12,170.11,0.005986]
[1641230121622,8.8246,170.06,169.98,1.3589]
[1641230121922,8.48,170.05,169.98,1.3589]
[1641230122122,8.74,170.05,169.98,1.3589]
[1641230122323,19.22728899,170.04,169.98,1.3589]
[1641230122522,27.96728899,170.04,169.98,1.3589]
[1641230122724,27.96728899,170.04,169.98,3.674885]
[1641230122926,27.96728899,170.04,169.98,4.174885]
[1641230124358,27.96728899,170.04,169.98,2.315985]
[1641230124528,57.88758899,170.04,169.98,2.315985]
[1641230125424,1.42669368,170.03,169.98,2.315985]
[1641230125625,8.48,170.02,169.98,2.315985]
[1641230126126,7.10699899,169.99,169.98,2.315985]
[1641230126525,7.36699899,169.99,169.98,2.315985]
[1641230127426,16.19389899,169.99,169.98,8.38038492]
[1641230127824,16.19389899,169.99,169.98,2.315985]
[1641230128324,24.67389899,169.99,169.98,2.315985]
[1641230135325,24.41389899,169.99,169.98,2.315985]
[1641230136526,24.67389899,169.99,169.98,2.315985]
[1641230136728,17.3069,169.99,169.98,2.315985]
[1641230138027,17.5669,169.99,169.98,2.315985]
[1641230142237,8.48,169.99,169.98,4.7195011]
[1641230142435,8.48,170.03,169.98,10.78390102]
[1641230142835,8.48,170.03,169.98,11.04390102]
[1641230143334,8.48,170.03,169.98,19.86790102]
[1641230143536,8.48,170.03,169.98,20.36790102]
[1641230143936,1.51121655,170.08,169.98,20.36790102]
[1641230143937,9.99121655,170.08,169.98,20.36790102]
[1641230144333,8.48,170.08,169.98,20.36790102]
[1641230144536,19.99265617,170.07,169.98,20.36790102]
[1641230144934,20.25265617,170.07,169.98,20.36790102]
[1641230145535,20.25265617,170.07,169.98,17.70438492]
[1641230145835,8.48,170.06,169.98,8.38038492]
[1641230146035,8.74,170.06,169.98,8.38038492]
[1641230146238,9.24,170.06,169.98,2.315985]
[1641230146435,10.75121655,170.06,169.98,2.315985]
[1641230146634,34.81721655,170.06,169.98,2.315985]
[1641230146936,8.8258,170.02,169.98,2.315985]
[1641230147139,8.48,170.01,169.98,2.315985]
[1641230147338,6.34163181,170.0,169.98,2.315985]
[1641230147541,6.60163181,170.0,169.98,2.315985]
[1641230147840,6.34163181,170.0,169.98,2.315985]
[1641230148138,8.48,170.03,169.98,2.315985]
[1641230148541,8.74,170.03,169.98,2.315985]
[1641230149141,22.54583557,170.02,169.98,2.315985]
[1641230149542,22.80583557,170.02,169.98,2.315985]
[1641230153147,0.26,170.02,169.98,2.315985]
[1641230153548,8.74,170.03,169.98,2.315985]
[1641230155275,8.48,170.03,169.98,2.315985]
[1641230155472,8.48,170.03,169.98,2.575985]
[1641230155671,8.48,170.03,169.98,11.399985]
[1641230155871,8.48,170.03,169.98,11.899985]
[1641230156070,8.48,170.03,169.98,11.399985]
[1641230157279,8.48,170.03,169.98,11.899985]
[1641230160083,9.99121655,170.08,169.98,11.899985]
[1641230160485,8.48,170.08,169.98,11.899985]
[1641230160882,8.48,170.08,169.99,1.2607]
[1641230161083,17.3029,170.08,170.0,8.8225]
[1641230161487,17.5629,170.08,170.0,9.5825]
[1641230162286,8.48,170.08,170.0,9.5825]
[1641230162585,1.51121655,170.1,170.0,9.5825]
[1641230162885,1.51121655,170.11,170.0,9.5825]
[1641230163088,1.51121655,170.11,170.05,8.8201]
[1641230163488,23.50357442,170.13,170.05,9.5801]
[1641230164392,32.32367442,170.13,170.05,9.5801]
[1641230165637,31.07245787,170.13,170.05,9.5801]
[1641230165822,30.81245787,170.13,170.05,9.5801]
[1641230166021,21.99235787,170.13,170.05,9.5801]
[1641230168025,1.51121655,170.14,170.05,9.5801]
[1641230168928,0.51121655,170.14,170.05,9.5801]
[1641230169827,33.18526349,170.16,170.05,9.5801]
[1641230170028,33.18526349,170.16,170.05,10.9307]
[1641230170833,24.70526349,170.16,170.05,10.9307]
[1641230173439,24.70526349,170.16,170.05,10.6707]
[1641230173639,24.96526349,170.16,170.05,10.6707]
[1641230173836,24.96526349,170.16,170.06,24.143]
[1641230174037,24.96526349,170.16,170.07,8.819]
[1641230174237,33.44526349,170.16,170.07,8.819]
[1641230174437,33.44526349,170.16,170.07,9.319]
[1641230174838,42.76386349,170.16,170.02,76.3953]
[1641230175039,23.6115,170.15,170.02,76.3953]
[1641230175237,114.49,170.14,170.02,76.3953]
[1641230175437,116.41669368,170.14,170.0,1.3285]
[1641230175644,1.2392,170.13,170.0,1.3285]
[1641230175838,8.48,170.12,170.01,2.84075474]
[1641230176039,8.8234,170.07,170.01,2.84075474]
[1641230176639,8.8234,170.07,170.01,3.10075474]
[1641230177240,8.8234,170.07,170.01,2.84075474]
[1641230177444,8.8234,170.07,170.01,11.66325474]
[1641230177944,8.8234,170.07,170.01,12.16325474]
[1641230179143,8.8234,170.07,170.01,12.42325474]
[1641230180243,17.3022,170.08,170.01,12.42325474]
[1641230180444,8.48,170.1,170.01,12.42325474]
[1641230181050,98.3403,170.14,170.01,12.42325474]
[1641230181051,106.8203,170.14,170.01,12.42325474]
[1641230181246,107.49858271,170.14,170.01,12.42325474]
[1641230181449,8.8196,170.13,170.07,8.8194]
[1641230181844,8.8196,170.13,170.07,9.5794]
[1641230182845,8.8196,170.13,170.07,0.26]
[1641230183047,8.8196,170.13,170.06,9.0799]
[1641230183247,8.8196,170.13,170.06,9.5799]
[1641230184651,8.8196,170.13,170.06,35.80017771]
[1641230185550,8.8196,170.13,170.06,9.5799]
[1641230185949,8.8196,170.13,170.07,2.64812616]
[1641230186350,8.8196,170.13,170.07,2.90812616]
[1641230187253,8.8196,170.13,170.07,9.0794]
[1641230187650,8.8196,170.13,170.07,0.26]
[1641230187852,8.8196,170.13,170.04,25.5658]
[1641230188352,9.0796,170.13,170.04,25.3058]
[1641230188553,17.5596,170.13,170.04,34.1263]
[1641230188953,18.0596,170.13,170.04,34.3863]
[1641230189555,17.2996,170.13,170.04,34.3863]
[1641230190759,8.48,170.13,170.04,34.3863]
[1641230193179,8.48,170.13,170.04,34.1263]
[1641230193384,8.74,170.13,170.04,34.1263]
[1641230193780,8.74,170.13,170.04,9.3205]
[1641230194381,17.5596,170.13,170.04,9.3205]
[1641230194582,8.48,170.13,170.04,9.5805]
[1641230194783,1.296,170.16,170.04,9.5805]
[1641230194986,8.48,170.17,170.04,9.5805]
[1641230195382,8.98,170.17,170.04,9.5805]
[1641230195582,25.2008999,170.16,170.05,25.2195]
[1641230195781,25.2008999,170.16,170.1,8.8175]
[1641230195983,25.2008999,170.16,170.1,11.95577326]
[1641230196584,25.2008999,170.16,170.1,9.5775]
[1641230197985,34.0189999,170.16,170.1,9.3175]
[1641230198185,34.0189999,170.16,170.1,0.5]
[1641230198387,34.0189999,170.16,170.08,10.6658]
[1641230198589,34.0189999,170.16,170.08,10.9258]
[1641230198989,34.2789999,170.16,170.08,10.9258]
[1641230200589,34.0189999,170.16,170.08,10.9258]
[1641230200792,25.2008999,170.16,170.08,10.9258]
[1641230203089,25.2008999,170.16,170.08,30.33697443]
[1641230203289,102.0596,170.2,170.08,30.33697443]
[1641230204188,28.74564313,170.19,170.11,8.8168]
[1641230204392,28.74564313,170.19,170.11,9.3168]
[1641230204589,28.74564313,170.19,170.11,9.5768]
[1641230204991,19.92904313,170.19,170.11,9.5768]
[1641230206794,3.29472135,170.24,170.11,9.5768]
[1641230206998,3.29472135,170.24,170.18,8.8125]
[1641230207196,3.29472135,170.24,170.19,2.97234995]
[1641230207399,3.29472135,170.25,170.19,3.47234995]
[1641230207696,22.54563273,170.25,170.19,3.73234995]
[1641230208395,22.54563273,170.25,170.2,8.8126]
[1641230208596,22.54563273,170.25,170.2,9.0726]
[1641230208797,19.25091138,170.25,170.2,9.5726]
[1641230209696,33.205,170.29,170.2,9.5726]
[1641230209898,31.916,170.29,170.2,9.5726]
[1641230210801,22.09102895,170.28,170.2,9.3126]
[1641230211500,22.35102895,170.28,170.2,9.3126]
[1641230211700,31.16332895,170.28,170.2,9.3126]
[1641230211899,22.09102895,170.28,170.2,9.3126]
[1641230212300,22.09102895,170.28,170.2,8.8126]
[1641230212500,22.09102895,170.28,170.2,9.3126]
[1641230212701,22.09102895,170.28,170.2,9.5726]
[1641230214709,22.09102895,170.28,170.2,11.888586]
[1641230215910,31.9159,170.29,170.2,11.888586]
[1641230216113,32.1759,170.29,170.2,11.888586]
[1641230217011,23.64412535,170.28,170.2,11.888586]
[1641230219141,32.45612535,170.28,170.2,11.888586]
[1641230219538,32.45612535,170.28,170.2,11.388586]
[1641230219842,32.45612535,170.28,170.2,11.888586]
[1641230221740,32.71612535,170.28,170.2,11.888586]
[1641230221940,32.71612535,170.28,170.2,11.628586]
[1641230222942,33.21612535,170.28,170.2,2.315986]
[1641230223644,32.95612535,170.28,170.21,2.93388938]
[1641230223942,32.45612535,170.28,170.21,2.93388938]
[1641230224141,32.45612535,170.28,170.21,3.69388938]
[1641230224743,23.64412535,170.28,170.21,3.69388938]
[1641230224945,23.64412535,170.28,170.21,12.50598938]
[1641230226145,32.45572535,170.28,170.21,12.50598938]
[1641230227044,32.45572535,170.28,170.21,14.82197538]
[1641230229145,8.8116,170.28,170.21,14.56197538]
[1641230230547,8.8116,170.28,170.21,14.82197538]
[1641230233252,8.811,170.29,170.21,14.82197538]
[1641230237053,8.8106,170.3,170.21,14.82197538]
[1641230238056,8.8101,170.31,170.21,14.82197538]
[1641230238258,8.8101,170.31,170.21,38.04197538]
[1641230238462,8.48,170.34,170.21,38.04197538]
[1641230238661,8.48,170.34,170.22,1.2491]
[1641230238859,8.48,170.34,170.27,8.8086]
[1641230239057,23.6495,170.35,170.27,8.8086]
[1641230239058,23.6495,170.35,170.28,2.32559528]
[1641230239459,32.4576,170.35,170.28,2.58559528]
[1641230239658,32.4576,170.35,170.28,3.08559528]
[1641230240161,8.8081,170.35,170.28,9.0684]
[1641230240361,8.8081,170.35,170.28,0.26]
[1641230240559,8.8081,170.35,170.26,23.72468004]
[1641230240759,8.8081,170.35,170.26,24.22468004]
[1641230241164,8.8081,170.35,170.27,2.17389156]
[1641230241359,8.8081,170.35,170.27,2.67389156]
[1641230241561,9.0681,170.35,170.27,9.3091]
[1641230241761,9.0681,170.35,170.27,8.8091]
[1641230241960,9.0681,170.35,170.27,9.0691]
[1641230242161,17.5481,170.35,170.24,1.2525]
[1641230242362,24.603,170.34,170.21,2.315986]
[1641230242564,8.48,170.33,170.23,8.811]
[1641230242767,8.48,170.33,170.22,2.77714243]
[1641230243062,22.9221,170.32,170.22,2.77714243]
[1641230243263,29.3774,170.3,170.21,2.315986]
[1641230243463,8.8136,170.26,170.21,2.315986]
[1641230243864,9.0736,170.26,170.21,2.315986]
[1641230244395,8.8136,170.26,170.21,2.315986]
[1641230244590,8.8136,170.26,170.21,2.575986]
[1641230246590,8.8136,170.26,170.21,2.315986]
[1641230246992,8.8136,170.26,170.21,2.575986]
[1641230247797,29.3744,170.31,170.21,3.075986]
[1641230247995,8.48,170.32,170.21,2.575986]
[1641230248296,11.77472135,170.35,170.21,2.575986]
[1641230248496,25.1826,170.34,170.21,4.379286]
[1641230248699,22.35765512,170.33,170.21,4.379286]
[1641230249095,8.8103,170.3,170.21,13.191486]
[1641230264514,8.8098,170.31,170.21,13.191486]
[1641230265716,24.009,170.32,170.21,13.191486]
[1641230265919,17.5359,170.33,170.27,8.809]
[1641230266216,17.5359,170.33,170.28,2.5314621]
[1641230266617,17.5359,170.33,170.28,2.7914621]
[1641230267017,8.8093,170.33,170.28,3.2914621]
[1641230267218,8.8085,170.34,170.28,11.5999621]
[1641230268319,8.8079,170.35,170.28,11.5999621]
[1641230268622,8.8079,170.35,170.28,12.0999621]
[1641230269020,1.2787,170.38,170.28,12.0999621]
[1641230269420,8.8064,170.38,170.28,12.0999621]
[1641230269621,24.0745,170.39,170.28,12.0999621]
[1641230269822,24.0745,170.39,170.28,34.7381621]
[1641230270021,3.29472135,170.41,170.28,34.7381621]
[1641230270221,12.28342135,170.41,170.28,111.1623621]
[1641230270421,8.806,170.4,170.28,111.1623621]
[1641230271442,8.806,170.4,170.28,119.6423621]
[1641230273043,8.806,170.4,170.28,119.3823621]
[1641230273243,8.807,170.37,170.28,119.3823621]
[1641230273943,23.9097,170.39,170.28,119.3823621]
[1641230274344,23.9097,170.39,170.28,119.6423621]
[1641230275546,8.8066,170.38,170.28,119.6423621]
[1641230276350,23.9097,170.39,170.28,119.6423621]
[1641230277348,1.255,170.41,170.28,119.6423621]
[1641230277951,1.255,170.41,170.28,121.9583471]
[1641230278150,1.255,170.41,170.29,1.3445]
[1641230278355,10.0603,170.41,170.34,8.8053]
[1641230278554,8.8053,170.41,170.34,35.72677437]
[1641230278754,8.8053,170.41,170.34,36.22677437]
[1641230279665,8.8053,170.41,170.34,9.5653]
[1641230280067,8.8053,170.41,170.34,0.5]
[1641230280465,8.8053,170.41,170.32,9.3059]
[1641230280866,9.0653,170.41,170.32,9.3059]
[1641230281471,9.0653,170.41,170.32,9.5659]
[1641230282567,8.8053,170.41,170.32,9.5659]
[1641230283567,24.9326,170.42,170.34,2.23009562]
[1641230283768,23.703,170.42,170.36,8.804]
[1641230283972,23.703,170.42,170.36,9.564]
[1641230284369,23.703,170.42,170.36,29.12454511]
[1641230286873,23.703,170.42,170.36,9.564]
[1641230287676,1.3439,170.45,170.36,9.564]
[1641230287876,25.6337,170.45,170.37,24.17297067]
[1641230288078,8.8035,170.44,170.37,33.23627067]
[1641230288275,8.8035,170.44,170.37,33.73627067]
[1641230288978,25.6337,170.45,170.37,33.73627067]
[1641230290778,25.6337,170.45,170.37,36.05225667]
[1641230291380,34.4369,170.45,170.37,36.05225667]
[1641230291581,34.4369,170.45,170.37,11.879286]
[1641230295583,25.6337,170.45,170.37,11.879286]
[1641230296911,24.2898,170.45,170.37,11.879286]
[1641230299414,33.0927,170.45,170.37,11.119286]
[1641230299613,33.3527,170.45,170.37,2.315986]
[1641230299912,49.3527,170.45,170.37,2.315986]
[1641230300411,51.00852973,170.45,170.37,2.315986]
[1641230300812,51.00852973,170.45,170.37,0.008886]
[1641230301213,1.65582973,170.42,170.37,0.008886]
[1641230301412,8.808,170.4,170.37,0.008886]
[1641230301611,32.6449,170.39,170.37,0.008886]
[1641230301812,3.20054508,170.38,170.37,0.008886]
[1641230302017,11.94054508,170.38,170.37,0.008886]
[1641230302212,12.44054508,170.38,170.37,0.008886]
[1641230302413,12.44054508,170.38,170.22,29.23350599]
[1641230302613,21.24814508,170.38,170.22,29.23350599]
[1641230302814,29.3704,170.33,170.22,38.04450599]
[1641230303019,29.6304,170.33,170.23,2.74150439]
[1641230303215,30.1304,170.33,170.23,2.74150439]
[1641230303414,30.1304,170.33,170.23,3.24150439]
[1641230303617,8.8115,170.28,170.23,0.5]
[1641230303816,8.8115,170.28,170.23,2.315985]
[1641230304816,19.70762794,170.27,170.23,2.315985]
[1641230305017,8.8134,170.25,170.23,2.575985]
[1641230306115,8.8134,170.25,170.23,8.64038492]
[1641230307119,8.8125,170.26,170.23,8.64038492]
[1641230307917,8.8125,170.26,170.23,2.575985]
[1641230309321,8.8125,170.26,170.24,6.06439992]
[1641230310723,8.8125,170.26,170.24,3.03219995]
[1641230310923,8.8125,170.26,170.23,2.575985]
[1641230311320,8.8125,170.26,170.23,2.315985]
[1641230314324,8.8125,170.26,170.2,3.03228933]
[1641230314523,8.8125,170.26,170.2,3.29228933]
[1641230314724,24.68422973,170.32,170.2,3.29228933]
[1641230314927,1.65582973,170.32,170.21,8.48]
[1641230315126,1.65582973,170.32,170.26,8.8088]
[1641230315326,1.65582973,170.32,170.27,2.82855226]
[1641230315526,1.65582973,170.32,170.27,3.08855226]
[1641230315725,1.65582973,170.32,170.27,3.58855226]
[1641230316127,8.8085,170.35,170.27,3.58855226]
[1641230316327,2.15582973,170.36,170.27,3.58855226]
[1641230316526,2.41582973,170.36,170.27,3.08855226]
[1641230317027,0.76,170.36,170.27,3.08855226]
[1641230317428,25.82643276,170.37,170.27,3.58855226]
[1641230318527,0.5,170.37,170.27,12.39715226]
[1641230318728,56.631,170.39,170.27,12.39715226]
[1641230318928,57.131,170.39,170.27,12.39715226]
[1641230319328,48.1399,170.39,170.27,12.39715226]
[1641230319628,21.66690765,170.38,170.27,12.39715226]
[1641230320032,22.16690765,170.38,170.27,12.39715226]
[1641230320426,30.97380765,170.38,170.27,12.39715226]
[1641230321628,30.47380765,170.38,170.27,12.39715226]
[1641230321828,21.66690765,170.38,170.27,20.87715226]
[1641230327035,21.16690765,170.38,170.27,23.19313826]
[1641230329137,8.8063,170.39,170.27,23.19313826]
[1641230330239,8.8057,170.41,170.27,30.40813826]
[1641230330441,8.8057,170.41,170.27,53.04343826]
[1641230331066,8.8057,170.41,170.33,8.8054]
[1641230331469,8.8057,170.41,170.3,100.9724]
[1641230331669,8.8057,170.41,170.3,101.4724]
[1641230332069,9.0657,170.41,170.3,101.4724]
[1641230332270,9.0657,170.41,170.3,102.807]
[1641230332872,9.0657,170.41,170.3,103.067]
[1641230333174,9.0657,170.41,170.31,8.8063]
[1641230333472,9.0657,170.41,170.31,9.5663]
[1641230334675,8.8057,170.41,170.31,9.5663]
[1641230342785,22.74610054,170.42,170.31,9.5663]
[1641230344387,31.55070054,170.42,170.31,9.5663]
[1641230345386,8.8046,170.42,170.31,9.5663]
[1641230345587,23.711,170.43,170.31,9.5663]
[1641230345788,23.711,170.43,170.33,2.54683738]
[1641230345989,1.65582973,170.44,170.37,8.8028]
[1641230346390,1.65582973,170.44,170.37,9.5628]
[1641230346591,24.94954894,170.44,170.37,9.5628]
[1641230349492,33.5164,170.45,170.37,9.5628]
[1641230349893,24.7131,170.45,170.37,9.5628]
[1641230350595,34.05178486,170.46,170.37,9.5628]
[1641230354697,34.05178486,170.46,170.38,22.76806102]
[1641230354997,34.05178486,170.46,170.39,11.44593466]
[1641230355397,34.05178486,170.46,170.39,12.20593466]
[1641230358834,34.05178486,170.46,170.35,99.2151]
[1641230359033,23.4631,170.45,170.35,99.7151]
[1641230359231,23.9631,170.45,170.33,1.3072]
[1641230359431,8.48,170.44,170.33,1.8072]
[1641230359830,8.74,170.44,170.34,2.91136428]
[1641230360031,0.58510312,170.42,170.34,11.71666428]
[1641230360235,0.58510312,170.42,170.34,12.21666428]
[1641230360633,0.58510312,170.42,170.34,12.47666428]
[1641230361337,0.58510312,170.42,170.34,12.21666428]
[1641230361640,8.8053,170.41,170.34,12.21666428]
[1641230362333,0.58510312,170.42,170.34,34.38884096]
[1641230362535,0.58510312,170.42,170.34,34.64884096]
[1641230362735,24.9856,170.43,170.34,34.64884096]
[1641230363437,8.8047,170.42,170.34,34.64884096]
[1641230363640,8.8047,170.42,170.34,35.88304096]
[1641230363840,8.8047,170.42,170.34,38.19902596]
[1641230365538,24.7256,170.43,170.34,38.19902596]
[1641230365740,24.7256,170.43,170.34,43.44402596]
[1641230366941,24.7256,170.43,170.34,38.19902596]
[1641230367543,33.5295,170.43,170.34,38.19902596]
[1641230368344,42.5398,170.43,170.34,38.19902596]
[1641230373849,42.5398,170.43,170.34,35.88304096]
[1641230374949,42.5398,170.43,170.34,38.19902696]
[1641230375449,42.5398,170.43,170.34,35.28766268]
[1641230375450,48.40701325,170.43,170.34,35.28766268]
[1641230375679,48.40701325,170.43,170.34,11.121286]
[1641230375861,8.48,170.42,170.34,11.121286]
[1641230376049,8.8055,170.4,170.34,11.121286]
[1641230376651,8.8055,170.4,170.34,13.85411768]
[1641230376856,8.8055,170.4,170.34,2.315986]
[1641230377051,8.8055,170.4,170.34,2.575986]
[1641230377653,8.8055,170.4,170.34,2.315986]
[1641230377852,18.0455,170.4,170.34,2.315986]
[1641230378456,65.0,170.39,170.23,24.0528]
[1641230378654,8.8109,170.31,170.23,24.0528]
[1641230379053,8.8109,170.31,170.25,8.81]
[1641230379255,8.48,170.35,170.25,8.81]
[1641230379466,8.98,170.35,170.25,8.81]
[1641230379654,8.98,170.35,170.26,2.22855905]
[1641230379856,8.8093,170.32,170.26,2.72855905]